Cogmind - Beta 9.1 @@@ ROGUE MODE // 2019.11.06 @ 15:53:00 Player: Musaab Result: Destroyed by G-34 Mercenary with Small Laser Performance ------------- Evolutions (1) 500 Regions Visited (2) 400 Robots Destroyed (23) 115 Value Destroyed (581) 581 Prototype IDs (0) 0 Alien Tech Used (0) 0 Bonus (0) 0 TOTAL SCORE: 1596 Bonus ------- None Cogmind --------- Core Integrity 0/400 Matter 198/400 Energy 99/100 System Corruption 0% Temperature Cool (12) Location -9/Materials Parts ------- Power (1) Propulsion (3) Utility (2) Medium Storage Unit Medium Matter Pod Weapon (3) Inventory (8) Light Ion Engine Light Ion Engine Light Ion Engine Improved Ion Engine Transport Network Coupler Peak State ------------ Power Ion Engine Propulsion Aluminum Leg Aluminum Leg Utility Medium Storage Unit Medium Matter Pod Weapon Heavy EM Pulse Gun Light EM Pulse Cannon Grenade Launcher Inventory Light Ion Engine Light Ion Engine Light Ion Engine Reinforced Ion Engine Transport Network Coupler Heavy EM Pulse Gun Light EM Pulse Cannon Grenade Launcher [Rating: 11] Favorites ----------- Power Ion Engine Engine Ion Engine Propulsion Aluminum Leg Leg Aluminum Leg Utility Medium Matter Pod Storage Medium Matter Pod Weapon Grenade Launcher Energy Gun Heavy EM Pulse Gun Energy Cannon Light EM Pulse Cannon Ballistic Gun Assault Rifle Launcher Grenade Launcher Build | -11 -10 -9 ------- Run | Scr Mat Mat Slots Evolved 2 | . . 2 Power . | . . . Propulsion 1 | . . 1 Utility . | . . . Weapon 1 | . . 1 Parts Attached 26 | 6 10 10 Power 4 | 1 2 1 Engine 4 | 1 2 1 Core . | . . . Reactor . | . . . Propulsion 7 | 2 2 3 Treads . | . . . Leg 7 | 2 2 3 Wheel . | . . . Hover . | . . . Flight . | . . . Utility 3 | 1 1 1 Device . | . . . Storage 3 | 1 1 1 Processor . | . . . Hackware . | . . . Protection . | . . . Artifact . | . . . Weapon 12 | 2 5 5 Energy Gun 3 | . 1 2 Energy Cannon 3 | . 1 2 Ballistic Gun 3 | 2 1 . Ballistic Cannon . | . . . Launcher 3 | . 2 1 Special Weapon . | . . . Impact Weapon . | . . . Slashing Weapon . | . . . Piercing Weapon . | . . . Special Melee Weapon . | . . . Unidentified Prototypes . | . . . Parts Lost 13 | . 1 12 Power 1 | . . 1 Propulsion 5 | . . 5 Utility . | . . . Weapon 7 | . 1 6 Highest Loss Streak 12 | . 1 12 Average Slot Usage (%) 90 | . 97 81 Engine 12 | . 14 10 Leg 24 | . 28 19 Storage 24 | . 25 22 Energy Gun 5 | . 3 8 Energy Cannon 5 | . . 12 Ballistic Gun 9 | . 15 . Launcher 9 | . 9 8 Naked Turns . | . . . Heaviest Build 26 | 12 18 26 Greatest Support 20 | 20 20 20 Greatest Overweight (x) 6 | 3 . 6 Average Overweight (x) . | . . 1 Largest Inventory Capacity 8 | 6 6 8 Average Capacity 6 | 5 6 7 Most Carried 8 | 2 6 8 Average Carried 5 | . 4 6 Final Capacity 8 | 6 6 8 Final Carried 6 | 2 6 5 Class Distribution -------------------- 45% | Mutant 33% | Bomber 21% | Scavenger-Mutant Dominant Class ---------------- Mutant | -10/Materials Bomber | -9/Materials Resources | -11 -10 -9 ----------- Run | Scr Mat Mat Matter Collected 499 | 124 289 86 Remotely . | . . . Salvage Created 733 | . 270 463 Parts 54 | . 22 32 Haulers Intercepted 1 | . 1 . Recyclers Shooed 2 | . 1 1 Parts Field Recycled . | . . . Retrieved Matter . | . . . Parts Self-Destructed . | . . . Prevented . | . . . Kills | -11 -10 -9 ------- Run | Scr Mat Mat Combat Hostiles Destroyed 17 | . 6 11 Guns 6 | . 5 1 Cannons 3 | . . 3 AOE 7 | . 1 6 Classes Destroyed 9 | . 6 3 Worker 1 | . 1 . Tunneler 1 | . . 1 Hauler 1 | . 1 . Recycler 1 | . 1 . Watcher 2 | . 2 . Swarmer 5 | . 5 . Grunt 8 | . 1 7 Brawler 1 | . . 1 Sentry 3 | . . 3 Best Kill Streak 6 | . 4 6 Combat Bots Only 5 | . 3 5 Max Kills in Single Turn 3 | . 2 3 Gunslinging 1 | . 1 . Exploded 2 | . 1 2 Melee . | . . . Uniques/NPCs Destroyed . | . . . Combat | -11 -10 -9 -------- Run | Scr Mat Mat Damage Taken 1667 | . 382 1285 Core 479 | . 70 409 Absorbed by Shields . | . . . Core Remaining (%) 86 | 100 72 . Volleys Fired 41 | . 24 17 Largest 3 | . 2 3 Hottest 157 | . 70 157 Shots Fired 92 | . 46 46 Gun 53 | . 41 12 Cannon 23 | . . 23 Launcher 16 | . 5 11 Special . | . . . Kinetic 24 | . 24 . Thermal 17 | . 17 . Explosive 16 | . 5 11 Electromagnetic 35 | . . 35 Robot Hit Streak 13 | . 7 13 Robot Miss Streak 4 | . 4 2 Penetration Max . | . . . Secondary Targets 1 | . 1 . Max Gunslinging Chain 1 | . 1 . Shots Hit Robots 56 | . 24 32 Core Hits 41 | . 17 24 Critical Hits 1 | . 1 . Critical Kills . | . . . Critical Parts Destroyed 1 | . 1 . Melee Attacks . | . . . Impact . | . . . Slashing . | . . . Piercing . | . . . Sneak Attacks . | . . . Combat Hostiles . | . . . Follow-up Attacks . | . . . Damage Inflicted 1523 | . 509 1014 Guns 420 | . 313 107 Cannons 339 | . . 339 Explosions 761 | . 194 567 Melee . | . . . Ramming 3 | . 2 1 Kinetic 152 | . 152 . Thermal 271 | . 161 110 Explosive 651 | . 194 457 Electromagnetic 446 | . . 446 Impact . | . . . Slashing . | . . . Piercing . | . . . Highest Corruption . | . . . Average Corruption . | . . . Corruption Purged . | . . . Overload Shots . | . . . Overflow Damage 26 | . . 26 Projectiles . | . . . Explosions 26 | . . 26 Melee . | . . . Knockbacks . | . . . Impact . | . . . Kinetic . | . . . Secondary . | . . . Self-Inflicted Damage 166 | . 30 136 Shots 6 | . 1 5 Rammed . | . . . Targets Rammed 3 | . 2 1 Kicked 3 | . 2 1 Crushed . | . . . Highest Temperature 274 | . 93 274 Average Temperature 87 | . 28 122 Received Heat Transfer 576 | . 30 546 Effects 1 | . . 1 Energy Bleed 1 | . . 1 Siege Activations . | . . . Robots Corrupted 1 | . . 1 Combat Hostiles 1 | . . 1 Parts Fried 3 | . . 3 Impact Corruptions . | . . . Robots Melted . | . . . Combat Hostiles . | . . . Parts Melted 1 | . 1 . Heat Transferred 631 | . 481 150 Parts Sabotaged . | . . . Parts Stolen . | . . . Parts Stripped . | . . . Power Chain Reactions 1 | . . 1 Missiles Intercepted . | . . . Alert | -11 -10 -9 ------- Run | Scr Mat Mat Peak Influence 297 | . 242 297 Average Influence 88 | . 93 97 Maximum Alert Level 1 | . 1 1 Low Security (%) 77 | . . . Level 1 22 | . . . Level 2 . | . . . Level 3 . | . . . Level 4 . | . . . Level 5 . | . . . High Security . | . . . Max Security . | . . . Squads Dispatched 3 | . 1 2 Investigation 1 | . . 1 Extermination . | . . . Reinforcement 2 | . 1 1 Assault . | . . . Garrison . | . . . Intercept . | . . . Construction Impeded . | . . . Haulers Reinforced . | . . . Stealth | -11 -10 -9 --------- Run | Scr Mat Mat Distress Signals 3 | . 1 2 Communications Jammed . | . . . Distress Signals . | . . . Times Spotted 37 | . 12 25 Peak Tracking Total 11 | . 4 11 Tactical Retreats 4 | . 2 2 Traps | -11 -10 -9 ------- Run | Scr Mat Mat Traps Triggered 1 | . . 1 Indirectly . | . . . Trap Hack Attempts . | . . . Triggered . | . . . Disarmed . | . . . Reprogrammed . | . . . Reused . | . . . Traps Extracted . | . . . Installed . | . . . Triggered . | . . . Machines | -11 -10 -9 ---------- Run | Scr Mat Mat Machines Disabled 4 | . 2 2 Max in Single Turn 2 | . 2 2 Machines Sabotaged . | . . . Garrisons Compromised . | . . . Overloaded Fab Kills . | . . . Fab Network Shutdowns . | . . . Hacking | -11 -10 -9 --------- Run | Scr Mat Mat Machines Accessed 4 | . 3 1 Terminals 2 | . 2 . Fabricators . | . . . Repair Stations . | . . . Recycling Units 2 | . 1 1 Scanalyzers . | . . . Garrison Access . | . . . Total Hacks 14 | . 11 3 Successful 8 | . 6 2 Failed 6 | . 5 1 Catastrophic 1 | . 1 . Database Lockouts . | . . . Manual 3 | . 3 . Terminals 8 | . 8 . Fabricators . | . . . Repair Stations . | . . . Recycling Units 6 | . 3 3 Scanalyzers . | . . . Garrison Access . | . . . Terminal Hacks 4 | . 4 . Record 1 | . 1 . Alert Level 1 | . 1 . Locate Traps 1 | . 1 . Zone Layout 1 | . 1 . Fabricator Hacks . | . . . Repair Station Hacks . | . . . Recycling Unit Hacks 4 | . 2 2 Retrieve Matter 2 | . 1 1 Retrieve Components 2 | . 1 1 Scanalyzer . | . . . Garrison Access Hacks . | . . . Unauthorized Hacks . | . . . Terminals . | . . . Fabricators . | . . . Repair Stations . | . . . Recycling Units . | . . . Scanalyzers . | . . . Garrison Access . | . . . Data Cores Recovered . | . . . Used . | . . . Hacking Detections 2 | . 2 . Full Trace Events 2 | . 2 . Feedback Events . | . . . Feedback Blocked . | . . . Robot Schematics Acquired . | . . . Robots Built . | . . . Matter . | . . . Time . | . . . Total Robot Build Rating . | . . . Part Schematics Acquired . | . . . Parts Built . | . . . Matter . | . . . Time . | . . . Total Part Build Rating . | . . . Parts Repaired . | . . . Time . | . . . Parts Recycled . | . . . Recycled Matter . | . . . Retrieved Matter . | . . . Retrieved Components 2 | . 1 1 Parts Scanalyzed . | . . . Part Schematics Acquired . | . . . Parts Damaged . | . . . Bothacking | -11 -10 -9 ------------ Run | Scr Mat Mat Used RIF Installer . | . . . Robots Hacked . | . . . Non-combat . | . . . Combat . | . . . Robot Hacks Applied . | . . . Relay Couplers Released . | . . . Robots Rewired . | . . . Allies Hacked . | . . . Hacks Repelled . | . . . Allies | -11 -10 -9 -------- Run | Scr Mat Mat Total Allies . | . . . Largest Group . | . . . Highest-Rated Group . | . . . Highest-Rated Ally . | . . . Total Orders . | . . . Ally Attacks . | . . . Total Damage . | . . . Kills . | . . . Allies Corrupted . | . . . Allies Melted . | . . . Intel | -11 -10 -9 ------- Run | Scr Mat Mat Robot Analysis Total . | . . . Derelict Logs Recovered . | . . . Drone Launches . | . . . Drone Recoveries . | . . . Exploration | -11 -10 -9 ------------- Run | Scr Mat Mat Turns Passed 798 | 56 435 307 Spaces Moved 477 | 40 286 151 Core 19 | 16 . 3 Treads . | . . . Legs 458 | 24 286 148 Wheels . | . . . Hover . | . . . Flight . | . . . Fastest Speed 50 | 50 120 120 Average Speed 129 | 113 120 152 Slowest Speed 350 | 200 120 350 Overloaded Moves . | . . . Propulsion Burnouts . | . . . Robots Hopped . | . . . Cave-ins Triggered . | . . . Exploration Rate (%) 21 | 4 42 18 Regions Visited 2 Branch Regions . Pre-discovered Areas . | . . . Known Exits Taken . | . . . Unknown Exits Taken 2 | 1 1 . Scrap Searched . | . . . Spaces Dug . | . . . Terrain Destroyed 133 | . 54 79 Melee . | . . . Projectile . | . . . AOE 133 | . 54 79 Actions | -11 -10 -9 --------- Run | Scr Mat Mat Total 572 | 47 335 190 Wait 3 | . . 3 Move 475 | 39 285 151 Hop . | . . . Pick Up 15 | 2 7 6 Fast Attach 9 | 6 1 2 Attach 7 | . 2 5 Detach . | . . . Swap 10 | . 7 3 Drop 9 | . 7 2 Fire 41 | . 24 17 Melee . | . . . Ram . | . . . Kick 3 | . 2 1 Crush . | . . . Escape Stasis . | . . . Rewire . | . . . Trap . | . . . Miscellaneous . | . . . Route ------- -11/Scrapyard -10/Materials (discovered 2 exits: *Mat / [*Min]) -9/Materials History --------- Turn | Location | Event 18 | -11/Scrapyard | Discovered new exit (range 16) 57 | -11/Scrapyard | Entered Materials 139 | -10/Materials | Discovered new exit (range 9) 322 | -10/Materials | Build established: Mutant 410 | -10/Materials | Discovered new exit (range 15) 492 | -10/Materials | Entered another Materials area 492 | -9/Materials | Evolved 2 slots: Propulsion x1, Weapon x1 783 | -9/Materials | Core integrity fell below 50% 790 | -9/Materials | Core integrity fell below 20% 799 | -9/Materials | Destroyed by G-34 Mercenary with Small Laser Last Messages --------------- 00785_ Acquired Aluminum Leg. 00786_ Rnf. Ion Engine destroyed. 00786_ U-05 Engineer lays Concrete. 00788_ Acquired Aluminum Leg. 00788_ U-05 Engineer lays Concrete. 00788_ R-06 Scavenger collects Sml. Laser. 00788_ K-01 Serf collects debris. 00788_ U-05 Engineer lays Concrete. 00788_ Aluminum Leg destroyed. 00789_ U-05 Engineer lays Concrete. 00791_ R-06 Scavenger collects Aluminum Leg. 00792_ U-05 Engineer lays Concrete. 00794_ U-05 Engineer destroyed. 00794_ U-05 Engineer lays Concrete. 00795_ K-01 Serf collects debris. 00795_ Acquired 3 matter. 00795_ U-05 Engineer lays Concrete. 00797_ U-05 Engineer builds a Wall. 00799_ K-01 Serf collects debris. 00799_ Aluminum Leg destroyed. Map ----- +----------------------------------------------------+ | ???????????????????????????????????????? | | ???????????????????????????????????????? | | ???????????????????????????????????????? | | ???????????????????????????????????????? | | ???????????????????????????????????????? | | ???????????????????????????????????????? | | ???????????????????????????????????????? | | ???????????????????????????????????????? | | ???????????????????????????????????????? | | ???????????????????????????????????????? | | ??????????????r ?????????????????????? | | ?? ?????????# ra ????????????????????? | | ?? ????????? #????????????????????? | | ?? ????????? ##???????????????????? | | ??#/????????? ##???????????????????? | | ??# ???#####? o##???????????????????? | | ??# ???# #? ##???????????????????? | | ?## #### " ### ###???????????????????? | | ##" " ## T ### rg##????????????????????? | | """""""# " ### ##????????????????????? | | " "" # # ###???????????????????? | | " "" ! #! ###???????????????????? | | " ;; # % u ###+####????????????? | | ; ;;#/ # % =%! #????????????? | | ; g g u %*%k=* #????????????? | | ;! g % * @[ #????????????? | | ; Y ==l=* #????????????? | | ; m ;;; ## gu #????????????? | | # ## # [% ! # #????????????? | | # =Y"## ####+### #????????????? | | # ""## # ## #????????????? | | # ## # """"" #?? #????????????? | | ####+### # """"" + ?? +????????????? | | ???# ### # """"" ## ? #????????????? | | ??## ## # ??#?? ?? +????????????? | | ??# ###### ????????? ??#????????????? | | ??# #?#########??????????????????????? | | ??# ## #??????????????????????? | | ??# # """ #??????????????????????? | | ?### ##""""" +??????????????????????? | | ?# """"" #??????????????????????? | | ?# = """" #??????????????????????? | | ?## = "" #??????????????????????? | | ?# # ## #??????????????????????? | | ?### ## ! #??????????????????????? | | ???# ##+###+#####??????????????????????? | | ???# #?????????????????????????? | | ########## #?????????????????????????? | | # # #?????????????????????????? | | # """ # #?????????????????????????? | +----------------------------------------------------+ Best States ------------- Heat Dissipation 28 Energy Generation 12 Energy Capacity 265 Matter Stores 302 Matter Capacity 400 Sight Range 16 Terrain Scan Density 10 Evasion (%) 40 Item Schematics ----------------- None Robot Schematics ------------------ None Fabricated ------------ Nothing Alien Tech Used ----------------- None Achievements -------------- None Challenges ------------ None Game ------ Seed SensorLightpackAmplifier Manual? 0 Play Time 00:14:07 Cumulative 10.0 hours Start 2019.11.06 @ 15:40:58 End 2019.11.06 @ 15:53:00 Sessions 1 Manual Loads 0 Difficulty Rogue Special Mode None Game No. 23 Rogue 23 Adventurer 0 Explorer 0 Win Type - Total 0 Types 0/0/0/0/0/0/0 Lore% 5 Gallery% 18 Achievement% 12 Wizard Run 0 Options --------- ASCII 0 Keyboard 0 Movement Mouse Keybinds 0 Fullscreen 1 Font 18/SmallcapsGlow Map View 76x50 Tactical HUD 1 Map Filters NONE Filters NONE Steam 1 RUN: 4e114d6a-3604-4e4b-94d8-dccb06b332b9